bitfinex-derivatives/quotes_ETHF0:USTF0_20250115
["timestamp","ask_amount","ask_price","bid_price","bid_amount"]
[1736928044224,4.78275291,3232.6,3232.5,0.002]
[1736928045431,4.47330291,3232.6,3232.5,0.002]
[1736928046131,4.78275291,3232.6,3232.5,0.002]
[1736928046827,4.47330291,3232.6,3232.5,0.002]
[1736928047331,4.78275291,3232.6,3232.5,0.002]
[1736928050733,3.84325291,3232.6,3232.5,0.002]
[1736928050928,4.31975291,3232.6,3232.5,0.002]
[1736928051137,4.01030291,3232.6,3232.5,0.002]
[1736928051539,4.31975291,3232.6,3232.5,0.002]
[1736928053039,4.01030291,3232.6,3232.5,0.002]
[1736928053237,4.01030291,3232.6,3232.5,0.31146]
[1736928056046,4.31975291,3232.6,3232.5,0.002]
[1736928056537,4.01030291,3232.6,3232.5,0.31146]
[1736928057532,4.01030291,3232.6,3232.5,0.002]
[1736928058137,4.01030291,3232.6,3232.5,0.31146]
[1736928058434,3.53380291,3232.6,3232.5,0.31146]
[1736928059539,3.2078,3232.8,3232.5,0.002]
[1736928059739,3.33762724,3232.7,3232.6,0.30945]
[1736928060042,2.42862291,3232.7,3232.5,0.002]
[1736928060340,1.28305,3232.6,3232.5,0.002]
[1736928060530,0.9736,3232.6,3232.5,0.31146]
[1736928060727,3.87381054,3232.6,3232.5,0.31146]
[1736928060934,3.37491054,3232.6,3232.5,0.31146]
[1736928061338,0.30941,3233.1,3232.9,0.30942]
[1736928061529,0.30941,3233.1,3232.5,0.002]
[1736928061530,3.04547656,3233.1,3233.0,0.30941]
[1736928061730,3.2078,3233.2,3232.6,4.16555291]
[1736928061938,3.2078,3233.2,3233.1,0.3094]
[1736928062338,6.52505148,3233.2,3233.1,0.3094]
[1736928064140,3.31725148,3233.2,3233.1,0.3094]
[1736928064640,3.55107847,3233.6,3233.5,0.30937]
[1736928064842,3.58331743,3233.7,3233.5,0.30937]
[1736928065043,6.13412291,3233.8,3233.0,0.4886]
[1736928065342,3.58332743,3233.6,3233.5,0.30936]
[1736928065551,0.30936,3233.6,3233.5,0.30936]
[1736928065840,3.72777293,3233.6,3233.0,0.4886]
[1736928066036,3.72777293,3233.6,3233.4,0.30937]
[1736928067244,3.72777293,3233.6,3233.5,0.4624]
[1736928067436,3.41841293,3233.6,3233.5,0.4624]
[1736928067940,3.80881355,3233.7,3233.5,0.77177]
[1736928068135,6.13412291,3233.8,3233.5,0.77177]
[1736928068337,3.49946355,3233.6,3233.5,0.77177]
[1736928068541,3.80881355,3233.7,3233.5,0.77177]
[1736928068742,0.30935,3233.7,3233.5,0.77177]
[1736928068943,0.30935,3233.7,3233.6,0.30936]
[1736928069144,0.30935,3233.7,3233.5,0.4624]
[1736928069347,3.30286243,3233.6,3233.5,0.77177]
[1736928069543,3.30286243,3233.7,3233.5,0.4624]
[1736928069746,3.2078,3233.8,3233.7,0.30935]
[1736928070141,6.48841553,3233.8,3233.5,0.4624]
[1736928070348,6.48841553,3233.8,3233.7,0.30935]
[1736928070648,3.58995553,3233.8,3233.6,0.30935]
[1736928070946,3.28061553,3233.8,3233.7,0.30935]
[1736928071151,3.58995553,3233.8,3233.6,0.30935]
[1736928071340,0.30934,3233.8,3233.6,0.30935]
[1736928071644,3.4654867,3233.7,3233.6,0.30935]
[1736928072037,3.4654867,3233.8,3233.6,0.30935]
[1736928072448,0.30934,3233.8,3233.6,0.30935]
[1736928072750,3.42438939,3233.7,3233.5,0.4624]
[1736928072944,0.30936,3233.6,3233.2,0.9287]
[1736928073144,3.42438939,3233.7,3233.3,0.4896]
[1736928073444,3.42438939,3233.5,3233.4,0.30938]
[1736928073644,3.58034116,3233.7,3233.6,0.30936]
[1736928073847,3.88967116,3233.9,3233.4,40.8]
[1736928074037,0.5001,3234.0,3233.4,40.8]
[1736928074238,0.30935,3233.7,3233.5,0.30936]
[1736928074444,6.78814116,3233.8,3233.3,0.4896]
[1736928074748,3.51807081,3233.6,3233.3,0.4896]
[1736928075049,3.2078,3233.8,3233.4,40.8]
[1736928075244,3.2078,3233.8,3233.7,0.30935]
[1736928075745,3.53609628,3233.8,3233.7,0.30935]
[1736928075950,3.2078,3235.1,3234.0,0.77329]
[1736928076247,3.2078,3235.1,3234.9,0.30923]
[1736928076443,3.51701,3235.1,3234.8,0.30924]
[1736928076648,3.27257096,3234.9,3234.8,0.30924]
[1736928076839,15.40496356,3235.0,3234.8,0.30924]
[1736928077045,12.1323926,3235.0,3234.8,0.30924]
[1736928077239,3.27257096,3234.9,3234.8,0.30924]
[1736928077448,3.27257096,3234.9,3234.4,40.8]
[1736928077649,3.58180096,3234.9,3234.4,40.8]
[1736928078057,0.30923,3234.9,3234.7,0.30925]
[1736928078252,3.2395898,3234.8,3234.4,40.8]
[1736928078451,3.2395898,3234.8,3234.6,0.30925]
[1736928078751,3.27811121,3234.9,3234.7,0.30925]
[1736928078954,1.73793,3235.0,3234.7,0.30925]
[1736928079246,3.27811121,3234.9,3234.7,0.30925]
[1736928079446,3.27811121,3234.9,3234.8,0.30924]
[1736928080743,3.5673525,3235.0,3234.4,44.00182291]
[1736928080949,3.2078,3235.1,3234.4,44.00182291]
[1736928081147,3.2078,3235.1,3235.0,0.30922]
[1736928081546,6.7751525,3235.1,3235.0,0.30922]
[1736928082851,7.0843625,3235.1,3234.9,0.30923]
[1736928083052,6.7751525,3235.1,3234.9,0.30923]
[1736928083251,6.7751525,3235.1,3235.0,0.30922]
[1736928084053,6.7751525,3235.1,3234.4,43.22862291]
[1736928084255,6.7751525,3235.1,3234.9,0.30923]
[1736928084955,0.30922,3235.0,3234.8,0.30924]
[1736928085250,3.21819141,3234.9,3234.3,4.4328]
[1736928085561,3.2078,3235.1,3234.7,0.30924]
[1736928085749,0.30923,3234.9,3234.7,0.30924]
[1736928086148,3.57778889,3234.8,3234.6,0.30926]
[1736928086558,3.57778889,3234.8,3234.7,0.30925]
[1736928086855,3.51702,3235.1,3234.8,0.30924]
[1736928087052,3.31201771,3235.0,3234.4,2.42862291]
[1736928087249,0.30924,3234.8,3234.6,0.30925]
[1736928087754,3.30367539,3234.7,3234.6,0.30925]
[1736928091061,3.30909768,3234.8,3234.7,0.30925]
[1736928091357,3.30909768,3235.0,3234.4,2.42862291]
[1736928091558,0.30924,3234.9,3234.5,0.30926]
[1736928091957,3.36870537,3234.8,3234.6,0.30926]
[1736928092354,3.67794537,3234.9,3234.6,0.30926]
[1736928092553,0.30924,3234.9,3234.6,0.30926]
[1736928092752,0.4971,3235.0,3234.4,2.42862291]
[1736928092961,0.4971,3235.0,3234.9,0.30923]
[1736928093458,4.02079976,3235.0,3234.9,0.30923]
[1736928095059,4.02079976,3235.0,3234.8,0.9049]
[1736928095258,4.02079976,3235.0,3234.9,0.30923]
[1736928095867,0.30924,3234.9,3234.7,0.30925]
[1736928096060,0.30924,3234.9,3234.4,2.42862291]
[1736928096061,4.02079976,3235.0,3234.4,0.9537]
[1736928096261,0.30927,3234.6,3234.4,0.79237]
[1736928096468,0.9456,3234.5,3234.4,0.30928]
[1736928096664,4.40430075,3234.5,3234.4,0.30928]
[1736928097167,4.40430075,3234.5,3234.3,3.2078]
[1736928097358,4.40430075,3234.5,3234.1,40.8]
[1736928097559,0.30929,3234.3,3234.1,40.8]
[1736928097766,4.40430075,3234.5,3234.1,40.8]
[1736928097968,0.30928,3234.4,3234.2,0.3093]
[1736928098267,3.55195297,3234.4,3234.3,0.30929]
[1736928098761,0.30924,3234.9,3234.2,3.689]
[1736928098762,0.30922,3235.1,3234.8,0.30924]
[1736928099361,3.40558242,3235.0,3234.9,40.8]
[1736928099562,3.71480242,3235.0,3234.9,40.8]
[1736928100067,5.74460485,3235.2,3234.3,2.42862291]
[1736928100368,0.30926,3234.7,3234.5,0.30927]
[1736928100555,0.30926,3234.7,3234.6,40.8]
[1736928100958,3.57541691,3234.7,3234.6,40.8]
[1736928103270,3.26615691,3234.7,3234.6,41.10926]
[1736928103667,3.5119688,3234.8,3234.7,0.30925]
[1736928104062,3.2078,3234.9,3234.7,0.4848]
[1736928104264,3.2078,3234.9,3234.8,0.30924]
[1736928104668,6.7197688,3234.9,3234.8,0.30924]
[1736928108266,8.91427779,3235.3,3234.7,6.12122291]
[1736928108462,3.2078,3235.4,3235.1,2.42862291]
[1736928108663,3.2078,3235.4,3235.3,0.30919]
[1736928108864,3.2078,3235.4,3235.2,0.4806]
[1736928109073,6.54145918,3235.4,3235.3,0.30919]
[1736928109267,3.33365918,3235.4,3235.3,0.30919]
[1736928109462,3.64283918,3235.4,3235.2,0.7898]
[1736928109663,0.30919,3235.3,3235.2,0.4806]
[1736928109972,3.4594546,3235.3,3235.2,0.4806]
[1736928110173,3.4594546,3235.3,3235.2,0.7898]
[1736928110367,0.30919,3235.4,3235.2,0.7898]
[1736928110573,3.7686446,3235.4,3235.2,0.7898]
[1736928110769,0.30919,3235.3,3235.2,0.7898]
[1736928110970,3.44153041,3235.3,3235.2,0.7898]
[1736928111274,3.75072041,3235.4,3235.2,0.7898]
[1736928111472,0.30919,3235.4,3235.2,0.7898]
[1736928111677,3.6921374,3235.3,3235.2,0.4806]
[1736928112075,3.3829474,3235.5,3235.2,0.4806]
[1736928112375,3.3829474,3235.3,3235.2,0.7898]
[1736928112771,0.30919,3235.4,3235.2,0.7898]
[1736928112971,3.2828988,3235.3,3235.2,0.7898]
[1736928115588,3.2828988,3235.3,3235.2,1.2408]
[1736928115972,3.36775139,3235.4,3235.3,0.30919]
[1736928116174,8.4516182,3235.5,3235.3,0.30919]
[1736928116375,8.4516182,3235.5,3235.4,0.30918]
[1736928116681,12.02741656,3235.5,3235.4,0.30918]
[1736928118381,3.57579836,3235.5,3235.4,0.30918]
[1736928121077,13.23479059,3235.5,3235.4,0.30918]
[1736928121881,13.23479059,3235.5,3235.0,0.30922]
[1736928121882,0.30921,3235.2,3235.0,0.30922]
[1736928122077,0.4793,3235.1,3235.0,2.73784291]
[1736928122277,9.65899223,3235.5,3235.0,2.42862291]
[1736928122477,9.65899223,3235.5,3235.4,2.73780291]
[1736928122974,12.97766358,3235.5,3235.4,44.48310291]
[1736928123584,11.79425752,3235.5,3235.4,44.48310291]
[1736928124278,8.47558617,3235.5,3235.4,44.48310291]
[1736928124474,8.47558617,3235.5,3235.4,44.97030291]
[1736928125681,8.47558617,3235.8,3235.7,0.30916]
[1736928125883,8.47558617,3235.8,3235.7,2.73778291]
[1736928126183,9.62653513,3236.0,3235.9,0.30914]
[1736928126786,13.18921041,3236.0,3235.7,5.63642291]
[1736928126977,13.18921041,3236.0,3235.9,0.30914]
[1736928126978,3.56267528,3236.0,3235.9,0.30914]
[1736928127174,0.9288,3236.5,3236.1,0.30911]
[1736928127583,4.80056528,3236.5,3236.2,40.8]
[1736928127778,4.49147528,3236.5,3236.2,40.8]
[1736928127984,0.3091,3236.3,3236.0,2.42862291]
[1736928128187,0.469,3236.2,3236.0,2.42862291]
[1736928128491,3.78472305,3236.2,3236.0,2.42862291]
[1736928128997,4.09383305,3236.2,3235.8,0.30914]
[1736928129286,3.78472305,3236.2,3235.8,0.30914]
[1736928129883,3.78472305,3236.2,3235.7,44.0078]
[1736928130089,3.78472305,3236.2,3235.9,0.30913]
[1736928130688,3.78472305,3236.2,3235.7,44.0078]
[1736928130877,3.78472305,3236.2,3235.9,0.30914]
[1736928131082,3.78472305,3236.2,3235.7,44.0078]
[1736928131287,3.78472305,3236.2,3236.0,0.30912]
[1736928132086,3.78472305,3236.2,3235.7,44.0078]
[1736928132282,3.78472305,3236.2,3236.0,0.30912]
[1736928132486,3.78472305,3236.2,3235.9,0.30913]
[1736928132884,3.78472305,3236.2,3236.0,0.30913]
[1736928133289,3.78472305,3236.2,3235.7,44.0078]
[1736928133495,6.99252305,3236.2,3235.7,44.0078]
[1736928133695,6.99252305,3236.2,3235.7,3.2078]
[1736928133888,6.99252305,3236.2,3235.8,2.42862291]
[1736928134090,6.99252305,3236.2,3236.1,0.30912]
[1736928135088,3.78472305,3236.2,3236.1,0.30912]
[1736928135291,3.78472305,3236.2,3235.8,2.91692291]
[1736928135292,4.09383305,3236.2,3236.0,0.30912]
[1736928135490,3.78472305,3236.2,3236.1,0.30912]
[1736928136495,0.9288,3236.5,3236.4,0.30909]
[1736928136793,4.40073223,3236.5,3236.4,0.30909]
[1736928141898,3.47193223,3236.5,3236.4,2.73771291]
[1736928142094,0.4607,3236.7,3236.6,0.30907]
[1736928142492,3.84615021,3236.7,3236.6,0.30907]
[1736928144796,3.38545021,3236.7,3236.6,0.30907]
[1736928145097,3.2078,3236.9,3236.5,1.3967]
[1736928145297,3.2078,3236.9,3236.7,2.73768291]
[1736928145298,4.51297235,3236.8,3236.7,2.73768291]
[1736928145495,0.9456,3236.8,3236.7,2.73768291]
[1736928145701,4.51297235,3236.8,3236.7,2.73768291]
[1736928146186,4.51297235,3236.8,3236.7,0.30906]
[1736928146390,5.00847235,3236.8,3236.7,0.30906]
[1736928151296,5.00847235,3236.8,3236.7,2.73768291]
[1736928151800,3.56737235,3236.8,3236.7,2.73768291]
[1736928152194,1.4222,3237.2,3237.1,0.30902]
[1736928152588,4.69814668,3237.2,3237.1,0.30902]
[1736928154402,3.27594668,3237.2,3237.1,0.30902]
[1736928154899,3.27594668,3237.2,3237.1,0.77162]
[1736928155300,3.2078,3237.4,3237.3,0.309]
[1736928155600,3.2078,3237.4,3237.3,2.73762291]
[1736928156189,0.30898,3237.5,3237.3,2.73762291]
[1736928156392,3.32161814,3237.4,3237.2,0.30901]
[1736928156793,0.30899,3237.5,3237.3,0.309]
[1736928156997,3.28290389,3237.3,3237.1,0.4626]
[1736928157203,3.28290389,3237.3,3237.2,1.26421]
[1736928157501,3.28290389,3237.5,3237.4,0.30899]
[1736928157701,1.4344,3237.6,3237.5,0.30898]
[1736928158200,4.78753457,3237.6,3237.5,0.30898]
[1736928158504,4.78753457,3237.6,3237.4,0.30899]
[1736928158701,2.42862291,3238.1,3237.5,0.30898]
[1736928158702,0.30893,3238.1,3237.5,0.30898]
[1736928158897,0.30893,3238.1,3237.3,2.42862291]
[1736928158898,0.9124,3237.7,3237.6,0.30897]
[1736928159100,4.36631281,3237.7,3237.6,0.30897]
[1736928159305,0.9124,3237.7,3237.6,0.30897]
[1736928159607,4.67528281,3237.7,3237.4,0.30898]
[1736928159910,0.4794,3237.6,3237.5,0.30898]
[1736928160098,4.36631281,3237.7,3237.3,2.42862291]
[1736928160301,0.9124,3237.7,3237.6,0.30897]
[1736928160804,4.4419163,3237.7,3237.6,0.30897]
[1736928161206,4.4419163,3237.7,3237.3,2.42862291]
[1736928161710,4.4419163,3237.7,3237.6,0.30897]
[1736928162210,4.7508863,3237.7,3237.4,0.30898]
[1736928162413,4.4419163,3237.7,3237.3,2.42862291]
[1736928162613,0.30898,3237.6,3237.4,0.30899]
[1736928162909,3.54660968,3237.5,3237.4,0.30899]
[1736928163799,3.54660968,3237.6,3237.5,0.30897]
[1736928164311,0.9124,3237.7,3237.6,0.30897]
[1736928164710,4.31702231,3237.7,3237.6,0.30897]
[1736928165012,4.31702231,3237.7,3237.6,2.73759291]
[1736928165207,0.9124,3237.7,3237.6,2.73759291]
[1736928165910,3.2078,3237.9,3237.8,0.30896]
[1736928166501,3.2078,3237.9,3237.8,41.10896]
[1736928166807,6.79866072,3237.9,3237.8,40.8]
[1736928167000,6.79866072,3237.9,3237.3,4.15002291]
[1736928167001,6.48971072,3237.9,3237.3,4.15002291]
[1736928167208,0.30896,3237.8,3237.6,0.30897]
[1736928167411,0.492,3237.7,3237.6,0.30897]
[1736928167609,3.77391072,3237.7,3237.6,41.10897]
[1736928167911,3.77391072,3237.7,3237.2,3.2078]
[1736928168118,0.309,3237.3,3237.0,0.30902]
[1736928168309,0.309,3237.3,3237.1,40.8]
[1736928168310,0.492,3237.2,3237.1,40.8]
[1736928168613,3.91569844,3237.2,3237.1,41.10902]
[1736928179615,3.42369844,3237.2,3237.1,41.58572]
[1736928182526,3.58199923,3237.4,3237.1,41.2767]
[1736928182824,6.09962291,3237.5,3236.1,3.2078]
[1736928183016,3.2078,3237.0,3236.5,0.30907]
[1736928183213,0.30907,3236.6,3236.4,0.30909]
[1736928183417,4.84207036,3236.9,3236.2,3.41302291]
[1736928183618,1.67935,3236.9,3236.7,0.30906]
[1736928183813,3.48420654,3236.8,3236.5,2.42862291]
[1736928184015,3.48420654,3236.8,3236.7,0.30906]
[1736928184424,3.48420654,3236.9,3236.7,0.30906]
[1736928184625,3.2078,3237.0,3236.8,2.92172291]
[1736928184819,3.2078,3237.0,3236.9,0.30904]
[1736928185320,1.7206,3237.4,3236.8,2.92172291]
[1736928185321,10.86614742,3237.3,3236.8,2.92172291]
[1736928185528,11.17514742,3237.3,3237.1,0.30902]
[1736928185723,14.20783188,3237.3,3237.0,0.30903]
[1736928185929,14.20783188,3237.3,3236.9,0.4761]
[1736928185930,14.20783188,3237.3,3237.2,0.30901]
[1736928186231,14.51683188,3237.3,3237.1,0.30902]
[1736928186419,14.20783188,3237.3,3237.2,0.30901]
[1736928186621,14.20783188,3237.3,3237.2,0.79371]
[1736928187018,10.86614742,3237.3,3237.2,4.00151]
[1736928187522,10.86614742,3237.8,3237.7,0.30896]
[1736928187817,14.43760982,3237.8,3237.7,0.30896]
[1736928188018,16.18966982,3237.8,3237.5,0.30898]
[1736928188629,5.3235224,3237.8,3237.5,0.30898]
[1736928189029,5.0145624,3237.8,3237.7,0.30896]
[1736928189234,4.5402624,3237.8,3237.7,0.30896]
[1736928189530,3.5714624,3237.8,3237.7,0.30896]
[1736928189832,3.5714624,3237.8,3237.7,0.77396]
[1736928190038,3.2078,3237.9,3237.7,0.465]
[1736928190331,3.2078,3237.9,3237.8,0.76935]
[1736928191628,0.4542,3238.1,3238.0,0.30894]
[1736928191935,10.86614742,3238.2,3238.1,0.30893]
[1736928192521,10.86614742,3238.2,3238.0,0.30893]
[1736928192727,14.31066728,3238.2,3238.0,0.30893]
[1736928193036,0.4722,3238.1,3238.0,0.30893]
[1736928193337,4.05292026,3238.1,3238.0,0.30893]
[1736928194535,3.58072026,3238.1,3238.0,0.30893]
[1736928197536,11.36004742,3238.6,3238.5,0.30889]
[1736928197741,10.86614742,3238.6,3238.5,2.73751291]
[1736928197938,14.2111828,3238.6,3238.5,2.73751291]
[1736928198239,14.2111828,3238.6,3238.5,2.42862291]
[1736928198930,14.2111828,3238.6,3238.5,2.73751291]
[1736928199129,3.34503538,3238.6,3238.5,2.73751291]
[1736928199531,3.2968924,3238.7,3238.5,2.73751291]
[1736928199739,0.30886,3238.8,3238.5,2.73751291]
[1736928200131,3.23092171,3238.7,3238.6,40.8]
[1736928201139,3.23040177,3238.8,3238.6,40.8]
[1736928201334,3.23040177,3238.8,3238.6,0.30888]
[1736928201541,3.51666,3238.9,3238.6,0.30888]
[1736928201741,3.53926177,3238.8,3238.6,0.30888]
[1736928201941,3.53926177,3238.8,3238.7,40.8]
[1736928202140,3.23040177,3238.8,3238.7,40.8]
[1736928202334,3.23040177,3238.8,3238.7,41.10887]
[1736928202539,3.23040177,3238.8,3238.7,0.30887]
[1736928202739,3.23377611,3238.8,3238.7,0.30887]
[1736928205747,0.00337434,3238.8,3238.7,0.30887]
[1736928208837,3.43669646,3238.8,3238.7,0.30887]
[1736928211045,0.00337434,3238.8,3238.7,0.30887]
[1736928213352,10.86614742,3239.7,3239.2,0.30882]
[1736928213655,9.07677433,3239.7,3239.6,8.37382582]
[1736928213845,12.07349713,3239.9,3239.8,0.30876]
[1736928214043,12.07349713,3239.9,3239.8,41.10876]
[1736928214244,0.9412,3240.3,3239.8,40.8]
[1736928214448,0.9412,3240.3,3240.1,2.73735291]
[1736928214747,3.49771835,3240.2,3239.8,43.22862291]
[1736928214952,0.30874,3240.1,3239.8,43.22862291]
[1736928215249,0.30873,3240.2,3239.9,0.30875]
[1736928215454,3.2183112,3240.0,3239.9,0.30875]
[1736928215657,3.2183112,3240.1,3239.9,0.30875]
[1736928215856,0.30873,3240.2,3239.9,0.30875]
[1736928216152,3.25715181,3240.1,3240.0,0.30874]
[1736928216454,0.9412,3240.3,3240.2,0.30873]
[1736928216855,4.19835181,3240.3,3240.2,0.30873]
[1736928218143,0.9412,3240.3,3240.2,0.30873]
[1736928218347,0.5003,3240.4,3240.1,2.42862291]
[1736928218547,3.2078,3240.5,3240.4,0.30871]
[1736928218849,6.55254257,3240.5,3240.4,2.73733291]
[1736928219250,0.9295,3240.7,3240.6,0.30869]
[1736928219251,0.4582,3240.7,3240.6,0.30869]
[1736928219552,4.46843,3241.3,3240.5,0.93]
[1736928219753,0.4582,3241.1,3241.0,0.30864]
[1736928219950,3.86946793,3241.1,3241.0,0.30864]
[1736928221557,0.30867,3240.9,3240.6,0.30868]
[1736928221857,0.491,3240.8,3240.6,0.30868]
[1736928222056,3.75668387,3240.8,3240.6,0.30868]
[1736928223054,3.75668387,3240.8,3240.7,0.30868]
[1736928225856,3.26568387,3240.8,3240.7,0.30868]
[1736928226048,3.26568387,3240.8,3240.5,2.91542291]
[1736928226049,0.76684,3241.1,3240.8,0.30867]
[1736928226250,0.4582,3241.1,3240.8,2.42862291]
[1736928226565,3.53730666,3241.0,3240.9,40.8]
[1736928226953,3.53730666,3241.0,3240.9,0.30866]
[1736928227846,3.53730666,3241.0,3240.8,40.8]
[1736928228048,0.30868,3240.8,3240.5,0.30869]
[1736928228258,0.9179,3240.7,3240.5,0.30869]
[1736928228454,4.44250753,3240.7,3240.5,0.30869]
[1736928228660,4.44250753,3240.7,3240.4,40.8]
[1736928228858,0.30869,3240.6,3240.4,40.8]
[1736928229058,4.44250753,3240.7,3240.4,40.8]
[1736928229059,0.761,3240.5,3240.4,40.8]
[1736928229363,7.35756486,3240.5,3240.2,0.30872]
[1736928229560,7.35756486,3240.5,3240.0,2.42862291]
[1736928229561,7.04886486,3240.5,3240.0,2.42862291]
[1736928229865,0.30873,3240.2,3240.1,40.8]
[1736928230165,0.30871,3240.4,3240.1,40.8]
[1736928230366,3.4830715,3240.2,3240.1,41.10873]
[1736928230659,3.4830715,3240.3,3240.1,41.10873]
[1736928231052,0.4643,3240.2,3240.1,41.10873]
[1736928231453,3.92565336,3240.2,3240.1,41.10873]
[1736928232060,3.92565336,3240.2,3240.1,40.8]
[1736928234066,4.23438336,3240.2,3240.1,40.8]
[1736928234363,3.92565336,3240.2,3240.1,40.8]
[1736928235657,3.92565336,3240.2,3240.1,41.10874]
[1736928235967,3.46135336,3240.2,3240.1,41.10874]
[1736928236260,3.6601,3240.5,3240.1,41.2638]
[1736928236464,3.27681752,3240.4,3240.2,0.30872]
[1736928236662,3.9688,3240.5,3240.2,0.30872]
[1736928236857,3.27681752,3240.4,3240.2,0.30872]
[1736928238864,3.58552752,3240.4,3240.2,0.30872]
[1736928239768,0.30873,3240.3,3240.1,40.8]
[1736928240064,3.6593,3240.5,3240.1,40.8]
[1736928240269,3.55486238,3240.2,3240.1,40.8]
[1736928240563,0.30873,3240.2,3240.1,40.8]
[1736928240962,3.86359238,3240.2,3240.1,40.8]
[1736928242470,0.30876,3239.9,3239.6,0.30878]
[1736928242655,0.4843,3239.8,3239.7,0.30877]
[1736928242858,3.71205429,3239.8,3239.7,41.10877]
[1736928243060,0.4843,3239.8,3239.7,41.10877]
[1736928243569,3.92391723,3239.8,3239.7,41.10877]
[1736928244364,3.92391723,3239.8,3239.7,40.8]
[1736928244868,3.92391723,3239.8,3239.7,41.10877]
[1736928245064,3.43961723,3239.8,3239.7,43.92359604]
[1736928245372,4.1462,3240.1,3239.7,43.61480755]
[1736928245670,3.29529019,3240.0,3239.9,0.30875]
[1736928245872,3.2078,3240.1,3239.9,0.38617562]
[1736928246067,3.2078,3240.1,3240.0,0.30875]
[1736928246468,6.63213997,3240.1,3240.0,0.30875]
[1736928247162,6.63213997,3240.1,3240.0,2.73737291]
[1736928247369,6.63213997,3240.1,3240.0,3.12352882]
[1736928247968,6.63213997,3240.1,3240.0,2.73737291]
[1736928248473,6.63213997,3240.1,3240.0,0.30875]
[1736928249372,6.94087997,3240.1,3239.9,0.76585]
[1736928249572,6.63213997,3240.1,3240.0,0.30875]
[1736928250766,6.63213997,3240.1,3239.9,0.4571]
[1736928250967,6.63213997,3240.1,3239.2,5.63642291]
[1736928251168,0.30875,3240.0,3239.4,0.3088]
[1736928251367,0.30878,3239.7,3239.4,0.3088]
[1736928251569,0.4941,3239.6,3239.4,41.1088]
[1736928251766,3.74048325,3239.6,3239.4,41.1088]
[1736928251969,4.04926325,3239.6,3239.4,41.1088]
[1736928252577,4.04926325,3239.6,3239.5,2.42862291]
[1736928253180,4.04926325,3239.6,3239.5,43.22862291]
[1736928253876,4.04926325,3239.6,3239.5,40.8]
[1736928254175,7.25706325,3239.6,3239.5,40.8]
[1736928254874,6.94828325,3239.6,3239.5,40.8]
[1736928255072,6.94828325,3239.6,3239.5,43.53741291]
[1736928255478,6.45418325,3239.6,3239.5,43.53741291]
[1736928256277,3.24638325,3239.6,3239.5,43.53741291]
[1736928256475,3.24638325,3239.6,3239.5,43.22862291]
[1736928256683,3.51658,3239.6,3239.5,40.8]
[1736928256980,6.73693451,3239.6,3239.5,40.8]
[1736928257476,0.30882,3239.2,3238.9,2.90832291]
[1736928257674,1.4362,3239.1,3238.9,2.42862291]
[1736928257876,0.30887,3238.7,3238.6,2.42862291]
[1736928258076,0.30886,3238.8,3238.6,0.30888]
[1736928258280,3.51378267,3238.7,3238.5,0.30888]
[1736928258477,3.82265267,3238.7,3238.6,40.8]
[1736928258675,0.30889,3238.5,3238.4,3.2078]
[1736928259077,3.51378267,3238.5,3238.4,44.0078]
[1736928259387,3.51378267,3238.5,3238.4,40.8]
[1736928259388,0.30889,3238.5,3238.4,40.8]
[1736928259778,3.85752092,3238.5,3238.4,40.8]
[1736928260786,3.54863092,3238.5,3238.4,40.8]
[1736928260991,3.85752092,3238.5,3238.4,40.8]
[1736928261180,0.31938482,3238.5,3238.4,40.8]
[1736928261380,3.60969576,3238.5,3238.4,40.8]
[1736928263384,3.62016166,3238.5,3238.4,40.8]
[1736928264387,3.63067208,3238.5,3238.4,40.8]
[1736928264988,3.6411825,3238.5,3238.4,40.8]
[1736928266888,0.30892,3238.2,3237.9,0.30894]
[1736928267388,3.49066423,3238.1,3237.9,0.30894]
[1736928267587,3.49066423,3238.1,3237.7,2.42862291]
[1736928267889,3.79959423,3238.1,3238.0,40.8]
[1736928274587,3.81005594,3238.1,3238.0,40.8]
[1736928274786,0.30894,3238.0,3237.8,0.30895]
[1736928275093,3.56092729,3237.9,3237.8,0.30895]
[1736928275295,3.56092729,3237.9,3237.8,41.10895]
[1736928275686,3.61372796,3237.9,3237.8,40.8]
[1736928275988,3.61372796,3237.9,3237.8,41.10896]
[1736928276492,3.61509149,3237.9,3237.8,41.10896]
[1736928277685,3.61645428,3237.9,3237.8,41.10896]
[1736928278595,3.2078,3238.6,3237.8,41.10896]
[1736928278783,3.51668,3238.6,3238.4,2.73751291]
[1736928278988,3.2078,3238.6,3238.3,0.3089]
[1736928279290,4.21499228,3238.5,3238.3,0.3089]
[1736928279997,4.21499228,3238.5,3238.1,2.88832291]
[1736928279998,3.42480228,3238.5,3238.4,2.73752291]
[1736928280193,3.2078,3238.6,3238.5,0.30889]
[1736928280590,6.44048711,3238.6,3238.5,0.30889]
[1736928280792,6.44048711,3238.6,3238.5,41.10889]
[1736928281890,3.2078,3238.6,3238.5,42.08069]
[1736928282294,3.22113108,3238.6,3238.5,42.08069]
[1736928283202,0.01333108,3238.6,3238.5,42.08069]
[1736928283493,3.2078,3239.0,3238.9,0.30885]
[1736928283700,3.2078,3239.0,3238.9,3.1203377]
[1736928284093,3.2078,3239.0,3238.9,43.9203377]
[1736928285100,0.30881,3239.4,3239.1,0.30882]
[1736928285294,3.5166,3239.5,3239.2,0.30882]
[1736928285502,3.434633,3239.3,3238.9,43.22862291]
[1736928285701,3.434633,3239.4,3239.2,0.30882]
[1736928285905,3.5166,3239.5,3239.2,0.30882]
[1736928286199,3.5166,3239.5,3238.9,43.22862291]
[1736928286200,3.434633,3239.4,3239.3,2.42862291]
[1736928286401,3.2078,3239.5,3239.4,0.3088]
[1736928286605,3.2078,3239.5,3239.4,0.69185355]
[1736928286800,3.2078,3239.5,3239.4,1.15515355]
[1736928287303,0.30877,3239.8,3239.5,0.30879]
[1736928287702,3.40550617,3239.7,3239.5,0.30879]
[1736928288205,3.40550617,3239.7,3239.4,0.4633]
[1736928288408,3.71428617,3239.7,3239.4,0.7721]
[1736928288611,3.42199992,3239.8,3239.4,0.4633]